Workbook

Sheet Motobomba
A1: SISTEMA DE REGISTRO DE PREÇOS - 2018
A2: I – CONJUNTO MOTOBOMBA E CHAVE DE PROTEÇÃO E PARTIDA
A3: ITEM | B3: DESCRIÇÃO DOS MATERIAIS | C3: UNID. | D3: CONSUMO ANUAL | E3: PREÇOS MÁXIMOS (R$)
E4: UNITARIO | F4: TOTAL | G4: Fonte
A5: 1 | B5: CONJUNTO MOTOBOMBA SUBMERSA E CHAVE DE PROTEÇÃO E PARTIDA: MOTOBOMBA SUBMERSA ELÉTRICA, PARA ATENDER UMA VAZÃO MÍNIMA DE 4M3/H E ALTURA MANOMÉTRICA (HMAN) DE 92 MCA, POTÊNCIA MÁXIMA DE 03 (TRÊS) C.V. , MONOFÁSICA, 220 VOLTS E 60 HZ. | C5: UN | D5: 200 | E5: 3350 | F5: =E5*D5 -> 670000 | G5: VEMAPE (38) 3690-9000 CNPJ: 05.150.060/0001-04. | I5: V1 | J5: V2 | K5: V3
E6: 2160 | F6: =D5*E6 -> 432000 | G6: BRASIDAS - EIRELI (47) 3057-3920 CNPJ 20.483.193/0001-96 | I6: =E5 -> 3350 | J6: =E6 -> 2160 | K6: =E7 -> 2480
E7: 2480 | F7: =E7*D5 -> 496000 | G7: SÓ BOMBAS (38) 3212-8989 CNPJ: 26.078.493.0001-76 | H7: Média item 1 | I7: =(I6+J6+K6)/3 -> 2663.333333
A8: 2 | B8: CONJUNTO MOTOBOMBA SUBMERSA E CHAVE DE PROTEÇÃO E PARTIDA: MOTOBOMBA SUBMERSA ELÉTRICA, PARA ATENDER UMA VAZÃO MÍNIMA DE 8M3/H E ALTURA MANOMÉTRICA (HMAN) DE 92 MCA, POTÊNCIA MÁXIMA DE 05 (CINCO) C.V. , MONOFÁSICA, 220 VOLTS E 60 HZ. | C8: UN | D8: 100 | E8: 5100 | F8: =E8*D8 -> 510000 | G8: VEMAPE (38) 3690-9000 CNPJ: 05.150.060/0001-04. | I8: V1 | J8: V2 | K8: V3
E9: 5581 | F9: =D8*E9 -> 558100 | G9: BRASIDAS - EIRELI (47) 3057-3920 CNPJ 20.483.193/0001-96 | I9: =E8 -> 5100 | J9: =E9 -> 5581 | K9: =E10 -> 4500
E10: 4500 | F10: =E10*D8 -> 450000 | G10: SÓ BOMBAS (38) 3212-8989 CNPJ: 26.078.493.0001-76 | H10: Média item 2 | I10: =(I9+J9+K9)/3 -> 5060.333333
A11: 3 | B11: MOTOBOMBA CENTRIFUGA ACOPLADA AO MOTOR A GASOLINA 2,8 CV 4 TEMPOS COM VAZÃO 16000 L/H E HM = 45 MCA INCLUINDO MANGOTE COM 6M DE COMPRIMENTO, VÁLVULA DE PÉ COM CRIVO, DUAS ABRAÇADEIRAS E DUAS CURVAS DE AÇO | C11: UN | D11: 10 | E11: 1300 | F11: =E11*D11 -> 13000 | G11: VEMAPE (38) 3690-9000 CNPJ: 05.150.060/0001-04. | I11: V1 | J11: V2 | K11: V3
E12: 1250 | F12: =D11*E12 -> 12500 | G12: BRASIDAS - EIRELI (47) 3057-3920 CNPJ 20.483.193/0001-96 | I12: =E11 -> 1300 | J12: =E12 -> 1250 | K12: =E13 -> 1125
E13: 1125 | F13: =E13*D11 -> 11250 | G13: SÓ BOMBAS (38) 3212-8989 CNPJ: 26.078.493.0001-76 | H13: Média item 3 | I13: =(I12+J12+K12)/3 -> 1225
A14: 4 | B14: MOTOBOMBA CENTRIFUGA ACOPLADA AO MOTOR A GASOLINA 5,5 CV 4 TEMPOS COM VAZÃO 20000 L/H E HM = 38 MCA INCLUINDO MANGOTE COM 6M DE COMPRIMENTO, VÁLVULA DE PÉ COM CRIVO, DUAS ABRAÇADEIRAS E DUAS CURVAS DE AÇO | C14: UN | D14: 10 | E14: 1650 | F14: =E14*D14 -> 16500 | G14: VEMAPE (38) 3690-9000 CNPJ: 05.150.060/0001-04. | I14: V1 | J14: V2 | K14: V3
E15: 2180 | F15: =D14*E15 -> 21800 | G15: BRASIDAS - EIRELI (47) 3057-3920 CNPJ 20.483.193/0001-96 | I15: =E14 -> 1650 | J15: =E15 -> 2180 | K15: =E16 -> 1498
E16: 1498 | F16: =E16*D14 -> 14980 | G16: SÓ BOMBAS (38) 3212-8989 CNPJ: 26.078.493.0001-76 | H16: Média item 4 | I16: =(I15+J15+K15)/3 -> 1776
A17: 5 | B17: MOTOBOMBA CENTRIFUGA ACOPLADA AO MOTOR A GASOLINA 6,5 CV 4 TEMPOS COM VAZÃO 36000 L/H E HM = 56 MCA INCLUINDO MANGOTE COM 6M DE COMPRIMENTO, VÁLVULA DE PÉ COM CRIVO, DUAS ABRAÇADEIRAS E DUAS CURVAS DE AÇO | C17: UN | D17: 10 | E17: 1650 | F17: =E17*D17 -> 16500 | G17: VEMAPE (38) 3690-9000 CNPJ: 05.150.060/0001-04. | I17: V1 | J17: V2 | K17: V3
E18: 1980 | F18: =D17*E18 -> 19800 | G18: BRASIDAS - EIRELI (47) 3057-3920 CNPJ 20.483.193/0001-96 | I18: =E17 -> 1650 | J18: =E18 -> 1980 | K18: =E19 -> 1550
E19: 1550 | F19: =E19*D17 -> 15500 | G19: SÓ BOMBAS (38) 3212-8989 CNPJ: 26.078.493.0001-76 | H19: Média item 5 | I19: =(I18+J18+K18)/3 -> 1726.666667
A20: 6 | B20: MOTOBOMBA CENTRÍFUGA DE EIXO HORIZONTAL, POTÊNCIA MÁXIMA 3CV, ROTOR EM BRONZE COM VAZÃO 5.000 L/H E HM = 100 MCA MONOFÁSICO INCLUINDO MANGOTE COM 6M DE COMPRIMENTO, VÁLVULA DE PÉ COM CRIVO, DUAS ABRAÇADEIRAS E DUAS CURVAS DE AÇO | C20: UN | D20: 10 | E20: 3400 | F20: =E20*D20 -> 34000 | G20: VEMAPE (38) 3690-9002 CNPJ: 05.150.060/0001-04. | I20: V1 | J20: V2 | K20: V3
E21: 3507 | F21: =D20*E21 -> 35070 | G21: BRASIDAS - EIRELI (47) 3057-3920 CNPJ 20.483.193/0001-96 | I21: =E20 -> 3400 | J21: =E21 -> 3507 | K21: =E22 -> 3800
E22: 3800 | F22: =E22*D20 -> 38000 | G22: SÓ BOMBAS (38) 3690-9100 CNPJ: 01.427.458/0001-94 | H22: Média item 6 | I22: =(I21+J21+K21)/3 -> 3569
A23: 7 | B23: MOTOBOMBA CENTRÍFUGA DE EIXO HORIZONTAL, POTÊNCIA MÁXIMA 5CV, ROTOR EM BRONZE COM VAZÃO 10.000 L/H E HM = 80 MCA MONOFÁSICO INCLUINDO MANGOTE COM 6M DE COMPRIMENTO, VÁLVULA DE PÉ COM CRIVO, DUAS ABRAÇADEIRAS E DUAS CURVAS DE AÇO | C23: UN | D23: 10 | E23: 6600 | F23: =E23*D23 -> 66000 | G23: VEMAPE (38) 3690-9000 CNPJ: 05.150.060/0001-04. | I23: V1 | J23: V2 | K23: V3
E24: 6408 | F24: =D23*E24 -> 64080 | G24: BRASIDAS - EIRELI (47) 3057-3920 CNPJ 20.483.193/0001-96 | I24: =E23 -> 6600 | J24: =E24 -> 6408 | K24: =E25 -> 6100
E25: 6100 | F25: =E25*D23 -> 61000 | G25: SÓ BOMBAS (38) 3212-8989 CNPJ: 26.078.493.0001-76 | H25: Média item 7 | I25: =(I24+J24+K24)/3 -> 6369.333333
A26: 8 | B26: MOTOBOMBA CENTRÍFUGA DE EIXO HORIZONTAL, POTÊNCIA MÁXIMA 7,5 CV, ROTOR EM BRONZE COM VAZÃO 10.000 L/H E HM = 100 MCA MONOFÁSICO INCLUINDO MANGOTE COM 6M DE COMPRIMENTO, VÁLVULA DE PÉ COM CRIVO, DUAS ABRAÇADEIRAS E DUAS CURVAS DE AÇO | C26: UN | D26: 10 | E26: 7900 | F26: =E26*D26 -> 79000 | G26: VEMAPE (38) 3690-9002 CNPJ: 05.150.060/0001-04. | I26: V1 | J26: V2 | K26: V3
E27: 8897 | F27: =D26*E27 -> 88970 | G27: BRASIDAS - EIRELI (47) 3057-3920 CNPJ 20.483.193/0001-96 | I27: =E26 -> 7900 | J27: =E27 -> 8897 | K27: =E28 -> 8600
E28: 8600 | F28: =E28*D26 -> 86000 | G28: SÓ BOMBAS (38) 3212-8989 CNPJ: 26.078.493.0001-76 | H28: Média item 8 | I28: =(I27+J27+K27)/3 -> 8465.666667

Sheet Reservatórios
A1: II – RESERVATÓRIOS
A2: ITEM | B2: DESCRIÇÃO DOS MATERIAIS | C2: UNID. | D2: CONSUMO ANUAL | E2: PREÇOS MÁXIMOS (R$)
E3: UNITARIO | F3: TOTAL | G3: Fonte
A4: 9 | B4: RESERVATÓRIO DE POLIETILENO FECHAMENTO RÁPIDO E SEGURO, TAMPA ROSCÁVEL, OLHAIS PARA IÇAMENTO E ANCORAMENTO NA BORDA, DESTINADO A ARMAZENAGEM DE ÁGUA POTÁVEL, ATÓXICO, COM CAPACIDADE DE ARMAZENAMENTO DE 5 M3, COM ORIFICIOS PARA ENTRADA DE 1 ½ POLEGADA E SAIDA DE 1 ½ POLEGADA DE ÁGUA. | C4: UN | D4: 180 | E4: 1300 | F4: =E4*D4 -> 234000 | G4: USINORTE POLIETILENO Fone: (38) 3214-7387 CNPJ: 09.607.249/0001-34 | I4: V1 | J4: V2 | K4: V3
E5: 1423 | F5: =E5*D4 -> 256140 | G5: FIBRATEC ENGENHARIA (49) 3321-3333 CNPJ: 79.915.955/0001-29 | I5: =E4 -> 1300 | J5: =E5 -> 1423 | K5: =E6 -> 2350
E6: 2350 | F6: =E6*D4 -> 423000 | G6: VEMAPE (38) 3690-9002 CNPJ: 05.150.060/0001-04. | H6: Média item 11 | I6: =(I5+J5+K5)/3 -> 1691
A7: 10 | B7: RESERVATÓRIO DE POLIETILENO FECHAMENTO RÁPIDO E SEGURO, TAMPA ROSCÁVEL, OLHAIS PARA IÇAMENTO E ANCORAMENTO NA BORDA, DESTINADO A ARMAZENAGEM DE ÁGUA POTÁVEL, ATÓXICO, COM CAPACIDADE DE ARMAZENAMENTO DE 10 M3, COM ORIFICIOS PARA ENTRADA DE 1 ½ POLEGADA E SAIDA DE 1 ½ POLEGADA DE ÁGUA. | C7: UN | D7: 200 | E7: 2300 | F7: =E7*D7 -> 460000 | G7: USINORTE POLIETILENO Fone: (38) 3214-7387 CNPJ: 09.607.249/0001-34 | I7: V1 | J7: V2 | K7: V3
E8: 2614 | F8: =E8*D7 -> 522800 | G8: Fibratec Engenharia (49) 3321-3333 CNPJ: 79.915.955/0001-29 | I8: =E7 -> 2300 | J8: =E8 -> 2614 | K8: =E9 -> 3900
E9: 3900 | F9: =E9*D7 -> 780000 | G9: VEMAPE (38) 3690-9002 CNPJ: 05.150.060/0001-04. | H9: Média item 12 | I9: =(I8+J8+K8)/3 -> 2938
A10: 11 | B10: RESERVATÓRIO DE POLIETILENO FECHAMENTO RÁPIDO E SEGURO, TAMPA ROSCÁVEL, OLHAIS PARA IÇAMENTO E ANCORAMENTO NA BORDA, DESTINADO A ARMAZENAGEM DE ÁGUA POTÁVEL, ATÓXICO, COM CAPACIDADE DE ARMAZENAMENTO DE 15 M3, COM ORIFICIOS PARA ENTRADA DE 1 ½ POLEGADA E SAIDA DE 1 ½ POLEGADA DE ÁGUA. | C10: UN | D10: 40 | E10: 4100 | F10: =E10*D10 -> 164000 | G10: USINORTE POLIETILENO Fone: (38) 3214-7387 CNPJ: 09.607.249/0001-34 | I10: V1 | J10: V2 | K10: V3
E11: 3998 | F11: =E11*D10 -> 159920 | G11: Fibratec Engenharia (49) 3321-3333 CNPJ: 79.915.955/0001-29 | I11: =E10 -> 4100 | J11: =E11 -> 3998 | K11: =E12 -> 6850
E12: 6850 | F12: =E12*D10 -> 274000 | G12: VEMAPE (38) 3690-9002 CNPJ: 05.150.060/0001-04. | H12: Média item 13 | I12: =(I11+J11+K11)/3 -> 4982.666667

Sheet Tubos e conexões
A1: III – TUBOS E CONEXÕES
A2: ITEM | B2: DESCRIÇÃO DOS MATERIAIS | C2: UNID. | D2: CONSUMO ANUAL | E2: PREÇOS MÁXIMOS (R$)
E3: UNITARIO | F3: TOTAL | G3: Fonte
A4: 12 | B4: TUBO DE PVC, PN 60, SOLDÁVEL, PONTA E BOLSA, COMPRIMENTO 6M, DE-25MM - NBR 14654 | C4: UN | D4: 30000 | E4: 10.1 | F4: =E4*D4 -> 303000 | G4: UNOCANN TUBOS E CONEXÕES (31) 3503-5500 CNPJ: 86.632.239/0001-08 | I4: V1 | J4: V2 | K4: V3
E5: 7.29 | F5: =D4*E5 -> 218700 | G5: POLYVIN PLÁSTICOS E DERIVADO LTDA (34) 3319-1700 CNPJ: 41.664.871/0001-97 | I5: =E4 -> 10.1 | J5: =E5 -> 7.29 | K5: =E6 -> 8.5
E6: 8.5 | F6: =E6*D4 -> 255000 | G6: VEMAPE (38) 3690-9002 CNPJ: 05.150.060/0001-04. | H6: Média item 14 | I6: =(I5+J5+K5)/3 -> 8.63 | M6: =I6 -> 8.63
A7: 13 | B7: TUBO DE PVC, PN 60, SOLDÁVEL, PONTA E BOLSA, COMPRIMENTO 6M, DN-32MM - NBR 14654 | C7: UN | D7: 30000 | E7: 18.9 | F7: =E7*D7 -> 567000 | G7: UNOCANN TUBOS E CONEXÕES (31) 3503-5500 CNPJ: 86.632.239/0001-08 | I7: V1 | J7: V2 | K7: V3
E8: 11.34 | F8: =D7*E8 -> 340200 | G8: POLYVIN PLÁSTICOS E DERIVADO LTDA (34) 3319-1700 CNPJ: 41.664.871/0001-97 | I8: =E7 -> 18.9 | J8: =E8 -> 11.34 | K8: =E9 -> 13.9
E9: 13.9 | F9: =E9*D7 -> 417000 | G9: VEMAPE (38) 3690-9002 CNPJ: 05.150.060/0001-04. | H9: Média item 15 | I9: =(I8+J8+K8)/3 -> 14.71333333 | M9: =I9 -> 14.71333333
A10: 14 | B10: TUBO DE PVC, PN 80, SOLDÁVEL, PONTA E BOLSA, COMPRIMENTO 6M, DN-50MM - NBR 14312 | C10: UN | D10: 180000 | E10: 38.9 | F10: =E10*D10 -> 7002000 | G10: UNOCANN TUBOS E CONEXÕES (31) 3503-5500 CNPJ: 86.632.239/0001-08 | I10: V1 | J10: V2 | K10: V3
E11: 23.09 | F11: =D10*E11 -> 4156200 | G11: POLYVIN PLÁSTICOS E DERIVADO LTDA (34) 3319-1700 CNPJ: 41.664.871/0001-97 | I11: =E10 -> 38.9 | J11: =E11 -> 23.09 | K11: =E12 -> 28
E12: 28 | F12: =E12*D10 -> 5040000 | G12: VEMAPE (38) 3690-9002 CNPJ: 05.150.060/0001-04. | H12: Média item 16 | I12: =(I11+J11+K11)/3 -> 29.99666667 | M12: =I12 -> 29.99666667
A13: 15 | B13: TUBO GALVANIZADO COM ROSCA BSP E LUVA, DN 1 ¹/² ", PN 15 Kgf / cm², CLASSE M - NBR 5580 | C13: UN | D13: 1000 | E13: 162 | F13: =E13*D13 -> 162000 | G13: Tubos Ipiranga (31) 3388-5999 CNPJ: 01.477.885/0004-20 | I13: V1 | J13: V2 | K13: V3
E14: 160 | F14: =E14*D13 -> 160000 | G14: VEMAPE (38) 3690-9002 CNPJ: 05.150.060/0001-04. | I14: =E13 -> 162 | J14: =E14 -> 160 | K14: =E15 -> 181.3
E15: 181.3 | F15: =E15*D13 -> 181300 | G15: QUALITY TUBOS (11) 2597-5710 CNPJ 11818296000179 | H15: Média item 17 | I15: =(I14+J14+K14)/3 -> 167.7666667 | M15: =I15 -> 167.7666667
A16: 16 | B16: TUBO DE PVC PBA, CLASSE 15, JUNTA ELASTICA, REDE AGUA, COMPRIMENTO 6M, DN-75MM - NBR | C16: UN | D16: 2000 | E16: 177 | F16: =E16*D16 -> 354000 | G16: VEMAPE (38) 3690-9000 CNPJ: 05.150.060/0001-04. | I16: V1 | J16: V2 | K16: V3
E17: 101.45 | F17: =E17*D16 -> 202900 | G17: UNOCANN TUBOS E CONEXÕES (31) 3503-5500 CNPJ: 86.632.239/0001-08 | I17: =E16 -> 177 | J17: =E17 -> 101.45 | K17: =E18 -> 99.9
E18: 99.9 | F18: =D16*E18 -> 199800 | G18: POLYVIN PLÁSTICOS E DERIVADO LTDA (34) 3319-1700 CNPJ: 41.664.871/0001-97 | H18: Média item 18 | I18: =(I17+J17+K17)/3 -> 126.1166667 | M18: =I18 -> 126.1166667
A19: 17 | B19: TUBO DE PVC PBA, CLASSE 15, JUNTA ELASTICA, REDE AGUA, COMPRIMENTO 6M, DN-100MM - NBR | C19: UN | D19: 2000 | E19: 298 | F19: =E19*D19 -> 596000 | G19: VEMAPE (38) 3690-9000 CNPJ: 05.150.060/0001-04. | I19: V1 | J19: V2 | K19: V3
E20: 164.2 | F20: =E20*D19 -> 328400 | G20: UNOCANN TUBOS E CONEXÕES (31) 3503-5500 CNPJ: 86.632.239/0001-08 | I20: =E19 -> 298 | J20: =E20 -> 164.2 | K20: =E21 -> 164.91
E21: 164.91 | F21: =D19*E21 -> 329820 | G21: POLYVIN PLÁSTICOS E DERIVADO LTDA (34) 3319-1700 CNPJ: 41.664.871/0001-97 | H21: Média item 19 | I21: =(I20+J20+K20)/3 -> 209.0366667 | M21: =I21 -> 209.0366667
L27: 15
O29: =AVERAGE(I27:K27) -> 
A30: 14 | B30: =D4 -> 30000 | G30: Moales (38) 99121-0956
A31: 15 | B31: =D7 -> 30000
A32: 16 | B32: =D10 -> 180000
A33: 17 | B33: =D13 -> 1000
A34: 18 | B34: =D16 -> 2000
A35: 19 | B35: =D19 -> 2000

Sheet Material elétrico (hidden)
A1: IV – MATERIAL ELÉTRICO
A2: ITEM | B2: DESCRIÇÃO DOS MATERIAIS | C2: UNID. | D2: CONSUMO ANUAL | E2: PREÇOS MÁXIMOS (R$)
E3: UNITARIO | F3: TOTAL | G3: Fonte
A4: 18 | B4: CABO TRIPOLAR DE 3x10mm, SISTEMA FLEXÍVEL, 1.000v | C4: M | D4: 2000 | E4: 15.53 | F4: =E4*D4 -> 31060 | G4: Ponto do eletricista (31) 3244-6000 CNPJ 17.192.774/0001-64 | I4: V1 | J4: V2 | K4: V3
E5: 10.2 | F5: =E5*D4 -> 20400 | G5: Disnacon - Aberlado - (11) 2061- 8461 CNPJ 2416925000143 | I5: =E4 -> 15.53 | J5: =E5 -> 10.2 | K5: =E6 -> 12.91 | M5: =I6 -> 12.88
E6: 12.91 | F6: =E6*D4 -> 25820 | G6: Othon de Carvalho (31) 2103 - 3000 CNPJ 17.185.679/0001-33 | H6: Média item 20 | I6: =(I5+J5+K5)/3 -> 12.88
A7: 19 | B7: FIO ENCAPADO 10mm | C7: M | D7: 2000 | E7: 4.55 | F7: =E7*D7 -> 9100 | G7: Ponto do eletricista (31) 3244-6000 CNPJ 17.192.774/0001-64 | I7: V1 | J7: V2 | K7: V3
E8: 3 | F8: =E8*D7 -> 6000 | G8: VEMAPE (38) 3690-9002 CNPJ: 05.150.060/0001-04. | I8: =E7 -> 4.55 | J8: =E8 -> 3 | K8: =E9 -> 3.27
E9: 3.27 | F9: =E9*D7 -> 6540 | G9: Synergy Cables (31) 3271-6360 CNPJ. 10.406.752/0001-00 | H9: Média item 21 | I9: =(I8+J8+K8)/3 -> 3.606666667 | M9: =I9 -> 3.606666667
E13: =D4 -> 2000
E14: =D7 -> 2000

Sheet Hidrômetro (hidden)
A1: V – HIDRÔMETRO
A2: ITEM | B2: DESCRIÇÃO DOS MATERIAIS | C2: UNID. | D2: QUANT. | E2: PREÇOS MÁXIMOS (R$)
E3: UNITARIO | F3: TOTAL | G3: Fonte
A4: 20 | B4: HIDRÔMETRO 3/4" COM VAZÃO = 1,5 M³ CONFORME NBR 8009, 8193 A 8195 DA ABNT, INCLUSO VIROLAS E CAVALETE | C4: UN | D4: 2000 | E4: =73.2+33 -> 106.2 | F4: =E4*D4 -> 212400 | G4: IRMÃOS SAFALTIS (11) 3312-8544 CNPJ: 60.418.480/0001-37 | I4: V1 | J4: V2 | K4: V3
E5: =92+33 -> 125 | F5: =E5*D4 -> 250000 | G5: VEMAPE (38) 3690-9000 CNPJ: 05.150.060/0001-04. | I5: =E4 -> 106.2 | J5: =E5 -> 125 | K5: =E6 -> 101
E6: =68+33 -> 101 | F6: =E6*D4 -> 202000 | G6: RMC Hidrômetros (38) 3214-5875 CNPJ: 13.802.300/0001-36 | H6: Média item 22 | I6: =(I5+J5+K5)/3 -> 110.7333333 | M6: =I6 -> 110.7333333
I10: 35 | J10: 87
M13: m | N13: 400 | O13: 12000 | Q13: =(N13/O13)*100 -> 3.333333333 | R13: %
M14: c | N14: 1600 | O14: 3200 | Q14: 50 | R14: %
M15: ps | N15: 100 | O15: 1100 | Q15: 9.090909091 | R15: %
M16: h | N16: 10 | O16: 15000 | Q16: =(N16/O16)*100 -> 0.06666666667 | R16: %

Sheet Tubo em concreto (hidden)
A1: COTAÇÃO TUBO DE CONCRETO
A2: VI – TUBO DE CONCRETO
A3: ITEM | B3: DESCRIÇÃO DOS MATERIAIS | C3: UNID. | D3: QUANT. | E3: PREÇOS MÁXIMOS (R$)
E4: UNITARIO | F4: TOTAL | G4: Fonte
A5: 21 | B5: TUBO CONCRETO ARMADO, CLASSE PA-2, PB, DN 1000 MM, PARA AGUAS PLUVIAIS (NBR8890) | C5: UN | D5: 500 | E5: 212.33 | F5: =E5*D5 -> 106165 | G5: SINAPI 7765 FEV 2018 | I5: V1 | J5: V2
E6: 275 | F6: =E6*D5 -> 137500 | G6: Premoblocos Cnpj: 05093732/0001-97 (38) 3224-4300 | I6: =E5 -> 212.33 | J6: =E6 -> 275
H7: Média item 23 | I7: =(I6+J6)/2 -> 243.665 | L7: =I7 -> 243.665
D12: =D5 -> 500

Sheet Clorador (hidden)
A1: VII – CLORADOR
A2: ITEM | B2: DESCRIÇÃO DOS MATERIAIS | C2: UNID. | D2: QUANT. | E2: PREÇOS MÁXIMOS (R$)
E3: UNITARIO | F3: TOTAL | G3: Fonte
A4: 22 | B4: CLORADOR DE PASSAGEM POR PASTILHA PARA POÇO | C4: UN | D4: 100 | E4: 415 | F4: =E4*D4 -> 41500 | G4: CAMPEZZA (38) 3224-3040 CNPJ: 28.017.188/0001-08 | I4: V1 | J4: V2 | K4: V3
E5: 319 | F5: =E5*D4 -> 31900 | G5: VEMAPE (38) 3690-9000 CNPJ: 05.150.060/0001-04. | I5: =E4 -> 415 | J5: =E5 -> 319 | K5: =E6 -> 520
E6: 520 | F6: =E6*D4 -> 52000 | G6: ACAQUANOVA (38) 3372-5111 CNPJ:25.297.054/0001- 91 | H6: Média item 23 | I6: =(I5+J5+K5)/3 -> 418 | M6: =I6 -> 418
I9: 35 | J9: 87
G16: =100*I6 -> 41800
F17: 1

Sheet Média de preços (hidden)
A1: SISTEMA DE REGISTRO DE PREÇOS - 2018 (GRD)
D2: DEMAIS EMPRESAS | J2: DECRETO 8.538/2015 ( ATÉ 25%-EPP) | M2: TOTAL
E3: QUANT. ADQUIRIDA | F3: SALDO | G3: VENCEDORA | H3: PREÇOS MÁXIMOS (R$) | J3: QUANT. | K3: PREÇOS MÁXIMOS (R$) | M3: QUANT. TOAL | N3: PREÇOS MÁXIMOS (R$)
A4: ITEM | B4: DESCRIÇÃO DOS MATERIAIS | C4: UNID. | D4: QUANT. | H4: UNITARIO | I4: TOTAL | K4: UNITARIO | L4: TOTAL | N4: UNITARIO | O4: TOTAL | P4: 1º lugar | Q4: Valor | R4: Conferência valor | S4: Aceitação | T4: Habilitação | U4: 2º lugar | V4: Valor | W4: Conferência valor | X4: Aceitação | Y4: Habilitação | Z4: 3º lugar | AA4: Valor | AB4: Conferência valor | AC4: Aceitação | AD4: Habilitação | AE4: 4º lugar | AF4: Valor | AG4: Conferência valor | AH4: Aceitação | AI4: Habilitação | AJ4: 5º lugar | AK4: Valor | AL4: Conferência valor | AM4: Aceitação | AN4: Habilitação | AO4: 6º lugar | AP4: Valor | AQ4: Conferência valor | AR4: Aceitação | AS4: Habilitação | AT4: 7º lugar | AU4: Valor | AV4: Conferência valor | AW4: Aceitação | AX4: Habilitação | AY4: 8º lugar | AZ4: Valor | BA4: Conferência valor | BB4: Aceitação | BC4: Habilitação
A5: 1 | B5: =Motobomba!B5 -> CONJUNTO MOTOBOMBA SUBMERSA E CHAVE DE PROTEÇÃO E PARTIDA: MOTOBOMBA SUBMERSA ELÉTRICA, PARA ATENDER UMA VAZÃO MÍNIMA DE 4M3/H E ALTURA MANOMÉTRICA (HMAN) DE 92 MCA, POTÊNCIA MÁXIMA DE 03 (TRÊS) C.V. , MONOFÁSICA, 220 VOLTS E 60 HZ. | C5: UN | D5: =M5-J6 -> 180 | F5: =D5-E5 -> 180 | G5: EBARA INDUSTRIAS MECANICAS E COMERCIO LTDA. CNPJ: 46.138.319/0001-89 | H5: 2663.33 | I5: =ROUND(H5*D5,2) -> 479399.4 | M5: =Motobomba!D5 -> 200 | N5: =K6 -> 2663.33 | O5: =L6+I5 -> 532666 | P5: EDINEIDE DE F. VASQUES BRITO COMERCIO E SERVICOS | Q5: 1360 | R5: =IF($Q5>$H5,"NEGOCIAR","OK") -> OK | S5: Recusada | U5: SANIGRAN LTDA | V5: 1379.96 | W5: =IF($V5>$H5,"NEGOCIAR","OK") -> OK | X5: Recusada | Z5: BOMBAS RIO PRETO LTDA | AA5: 1429.99 | AB5: =IF($AA5>$H5,"NEGOCIAR","OK") -> OK | AC5: Aceita | AD5: Habilitado | AG5: =IF($AF5>$H5,"NEGOCIAR","OK") -> OK
A6: 2 | B6: (Cota de até 25% - Exclusivo para ME e EPP): CONJUNTO MOTOBOMBA SUBMERSA E CHAVE DE PROTEÇÃO E PARTIDA: MOTOBOMBA SUBMERSA ELÉTRICA, PARA ATENDER UMA VAZÃO MÍNIMA DE 4M3/H E ALTURA MANOMÉTRICA (HMAN) DE 92 MCA, POTÊNCIA MÁXIMA DE 03 (TRÊS) C.V. , MONOFÁSICA, 220 VOLTS E 60 HZ. | C6: UN | D6: =J6 -> 20 | H6: =H5 -> 2663.33 | J6: 20 | K6: =H5 -> 2663.33 | L6: =ROUND(K6*J6,2) -> 53266.6 | P6: EDINEIDE DE F. VASQUES BRITO COMERCIO E SERVICOS | Q6: 1370 | R6: OK | S6: Recusada | U6: SANIGRAN LTDA | V6: 1372.96 | W6: OK | X6: Recusada | Z6: BOMBAS RIO PRETO LTDA | AA6: 1429.99 | AB6: OK | AC6: Aceita | AD6: Habilitado | AG6: OK
A7: 3 | B7: =Motobomba!B8 -> CONJUNTO MOTOBOMBA SUBMERSA E CHAVE DE PROTEÇÃO E PARTIDA: MOTOBOMBA SUBMERSA ELÉTRICA, PARA ATENDER UMA VAZÃO MÍNIMA DE 8M3/H E ALTURA MANOMÉTRICA (HMAN) DE 92 MCA, POTÊNCIA MÁXIMA DE 05 (CINCO) C.V. , MONOFÁSICA, 220 VOLTS E 60 HZ. | C7: UN | D7: =M7-J8 -> 90 | F7: 90 | G7: BOMBAS RIO PRETO LTDA. CNPJ: 59.792.010/0001-50 | H7: 5060.33 | I7: =ROUND(H7*D7,2) -> 455429.7 | M7: =Motobomba!D8 -> 100 | N7: =K8 -> 5060.33 | O7: =L8+I7 -> 506033 | P7: BOMBAS RIO PRETO LTDA | Q7: 2900 | R7: OK | S7: Aceita | T7: Habilitado | W7: OK
A8: 4 | B8: (Cota de até 25% - Exclusivo para ME e EPP): CONJUNTO MOTOBOMBA SUBMERSA E CHAVE DE PROTEÇÃO E PARTIDA: MOTOBOMBA SUBMERSA ELÉTRICA, PARA ATENDER UMA VAZÃO MÍNIMA DE 8M3/H E ALTURA MANOMÉTRICA (HMAN) DE 92 MCA, POTÊNCIA MÁXIMA DE 05 (CINCO) C.V. , MONOFÁSICA, 220 VOLTS E 60 HZ. | C8: UN | D8: =J8 -> 10 | H8: =H7 -> 5060.33 | J8: 10 | K8: =H7 -> 5060.33 | L8: =ROUND(K8*J8,2) -> 50603.3 | P8: BHS - BOMBAS HIDRAULICAS E SERVICOS LTDA | Q8: 2700 | R8: OK | S8: Recusada | U8: BOMBAS RIO PRETO LTDA | V8: 2900 | W8: =IF($V8>$H8,"NEGOCIAR","OK") -> OK | X8: Aceita | Y8: Habilitado
A9: 5 | B9: =Motobomba!B11 -> MOTOBOMBA CENTRIFUGA ACOPLADA AO MOTOR A GASOLINA 2,8 CV 4 TEMPOS COM VAZÃO 16000 L/H E HM = 45 MCA INCLUINDO MANGOTE COM 6M DE COMPRIMENTO, VÁLVULA DE PÉ COM CRIVO, DUAS ABRAÇADEIRAS E DUAS CURVAS DE AÇO | C9: UN | D9: 10 | F9: 10 | G9: ITACA EIRELI - ME CNPJ: 24.845.457/0001-65 | H9: 1225 | I9: 12250 | M9: =Motobomba!D11 -> 10 | N9: =H9 -> 1225 | O9: =L9+I9 -> 12250 | P9: CAMPEZZA IRRIGACAO E EQUIPAMENTOS EIRELI | Q9: 1103.7 | R9: OK | S9: Aceita | T9: Habilitado | W9: =IF($V9>$H9,"NEGOCIAR","OK") -> OK | AB9: =IF($AA9>$H9,"NEGOCIAR","OK") -> OK | AG9: OK
A10: 6 | B10: =Motobomba!B14 -> MOTOBOMBA CENTRIFUGA ACOPLADA AO MOTOR A GASOLINA 5,5 CV 4 TEMPOS COM VAZÃO 20000 L/H E HM = 38 MCA INCLUINDO MANGOTE COM 6M DE COMPRIMENTO, VÁLVULA DE PÉ COM CRIVO, DUAS ABRAÇADEIRAS E DUAS CURVAS DE AÇO | C10: UN | D10: 10 | F10: 10 | G10: POTENT DISTRIBUIÇÃO E REPRESENTAÇÃO LTDA CNPJ: 03.939.863/0001-17 | H10: 1776 | I10: 17760 | M10: =Motobomba!D14 -> 10 | N10: 1776 | O10: 17760 | P10: SISTEMINAS LTDA | Q10: 1769 | R10: OK | S10: Recusada | U10: BRASIDAS EIRELI | V10: 1769.95 | W10: OK | X10: Aceita | Y10: Habilitado | AB10: OK | AG10: OK
A11: 7 | B11: =Motobomba!B17 -> MOTOBOMBA CENTRIFUGA ACOPLADA AO MOTOR A GASOLINA 6,5 CV 4 TEMPOS COM VAZÃO 36000 L/H E HM = 56 MCA INCLUINDO MANGOTE COM 6M DE COMPRIMENTO, VÁLVULA DE PÉ COM CRIVO, DUAS ABRAÇADEIRAS E DUAS CURVAS DE AÇO | C11: UN | D11: 10 | F11: 10 | G11: POTENT DISTRIBUIÇÃO E REPRESENTAÇÃO LTDA CNPJ: 03.939.863/0001-17 | H11: 1726.67 | I11: 17266.7 | M11: =Motobomba!D17 -> 10 | N11: 1726.67 | O11: 17266.7 | P11: EDINEIDE DE F. VASQUES BRITO COMERCIO E SERVICOS | Q11: 1448 | R11: =IF($Q11>$H11,"NEGOCIAR","OK") -> OK | S11: Recusada | U11: CAMPEZZA IRRIGACAO E EQUIPAMENTOS EIRELI | V11: 1448.5 | W11: OK | X11: Recusada | Z11: BRASIDAS EIRELI | AA11: 1448.99 | AB11: =IF($AA11>$H11,"NEGOCIAR","OK") -> OK | AC11: Aceita | AD11: Habilitado | AG11: OK
A12: 8 | B12: =Motobomba!B20 -> MOTOBOMBA CENTRÍFUGA DE EIXO HORIZONTAL, POTÊNCIA MÁXIMA 3CV, ROTOR EM BRONZE COM VAZÃO 5.000 L/H E HM = 100 MCA MONOFÁSICO INCLUINDO MANGOTE COM 6M DE COMPRIMENTO, VÁLVULA DE PÉ COM CRIVO, DUAS ABRAÇADEIRAS E DUAS CURVAS DE AÇO | C12: UN | D12: 10 | F12: 10 | G12: HIDROSSOLO SERVICOS AMBIENTAIS E POCOS ARTESIANOS LTDA CNPJ: 07.781.094/0001-22 | H12: 3569 | I12: 35690 | L12: =ROUND(K12*J12,2) -> 0 | M12: =Motobomba!D20 -> 10 | N12: 3569 | O12: 35690 | P12: STARMAC INDUSTRIA E COMERCIO LTDA | Q12: 2756 | R12: =IF($Q12>$H12,"NEGOCIAR","OK") -> OK | S12: Recusada | U12: CAMPEZZA IRRIGACAO E EQUIPAMENTOS EIRELI | V12: 2777 | W12: OK | X12: Recusada | Z12: BRASIDAS EIRELI | AA12: 2854.99 | AB12: =IF($AA12>$H12,"NEGOCIAR","OK") -> OK | AC12: Aceita | AD12: Habilitado | AG12: OK
A13: 9 | B13: =Motobomba!B23 -> MOTOBOMBA CENTRÍFUGA DE EIXO HORIZONTAL, POTÊNCIA MÁXIMA 5CV, ROTOR EM BRONZE COM VAZÃO 10.000 L/H E HM = 80 MCA MONOFÁSICO INCLUINDO MANGOTE COM 6M DE COMPRIMENTO, VÁLVULA DE PÉ COM CRIVO, DUAS ABRAÇADEIRAS E DUAS CURVAS DE AÇO | C13: UN | D13: 10 | F13: 10 | G13: HIDROSSOLO SERVICOS AMBIENTAIS E POCOS ARTESIANOS LTDA CNPJ: 07.781.094/0001-22 | H13: 6369.33 | I13: 63693.3 | M13: =Motobomba!D23 -> 10 | N13: 6369.33 | O13: 63693.3 | P13: STARMAC INDUSTRIA E COMERCIO LTDA | Q13: 4595 | R13: OK | S13: Recusada | U13: EDINEIDE DE F. VASQUES BRITO COMERCIO E SERVICOS | V13: 4600 | W13: OK | X13: Recusada | Z13: BRASIDAS EIRELI | AA13: 4733.99 | AB13: OK | AC13: Aceita | AD13: Habilitado | AG13: OK
A14: 10 | B14: =Motobomba!B26 -> MOTOBOMBA CENTRÍFUGA DE EIXO HORIZONTAL, POTÊNCIA MÁXIMA 7,5 CV, ROTOR EM BRONZE COM VAZÃO 10.000 L/H E HM = 100 MCA MONOFÁSICO INCLUINDO MANGOTE COM 6M DE COMPRIMENTO, VÁLVULA DE PÉ COM CRIVO, DUAS ABRAÇADEIRAS E DUAS CURVAS DE AÇO | C14: UN | D14: 10 | F14: 10 | G14: HIDROSSOLO SERVICOS AMBIENTAIS E POCOS ARTESIANOS LTDA CNPJ: 07.781.094/0001-22 | H14: 8465.67 | I14: 84656.7 | M14: =J14+D14 -> 10 | N14: 8465.67 | O14: 84656.7 | P14: STARMAC INDUSTRIA E COMERCIO LTDA | Q14: 6418 | R14: OK | S14: Aceita | T14: Habilitado | W14: OK | AB14: OK | AG14: OK
A15: 11 | B15: RESERVATÓRIO DE POLIETILENO FECHAMENTO RÁPIDO E SEGURO, TAMPA ROSCÁVEL, OLHAIS PARA IÇAMENTO E ANCORAMENTO NA BORDA, DESTINADO A ARMAZENAGEM DE ÁGUA POTÁVEL, ATÓXICO, COM CAPACIDADE DE ARMAZENAMENTO DE 5 M3, COM ORIFICIOS PARA ENTRADA DE 1 ½ POLEGADA E SAIDA DE 1 ½ POLEGADA DE ÁGUA. | C15: UN | D15: =M15-J16 -> 160 | F15: =D15-E15 -> 160 | G15: FORTLEV INDUSTRIA E COMERCIO DE PLASTICOS LTDA. CNPJ: 10.921.911/0005-39 | H15: 1691 | I15: =ROUND(H15*D15,2) -> 270560 | M15: =Reservatórios!D4 -> 180 | N15: =K16 -> 1691 | O15: =L16+I15 -> 304380 | P15: USINORTE POLIETILENO LTDA | Q15: 1008 | R15: OK | S15: Aceita | T15: Habilitado | W15: OK | AB15: OK | AG15: OK
A16: 12 | B16: (Cota de até 25% - Exclusivo para ME e EPP): RESERVATÓRIO DE POLIETILENO FECHAMENTO RÁPIDO E SEGURO, TAMPA ROSCÁVEL, OLHAIS PARA IÇAMENTO E ANCORAMENTO NA BORDA, DESTINADO A ARMAZENAGEM DE ÁGUA POTÁVEL, ATÓXICO, COM CAPACIDADE DE ARMAZENAMENTO DE 5 M3, COM ORIFICIOS PARA ENTRADA DE 1 ½ POLEGADA E SAIDA DE 1 ½ POLEGADA DE ÁGUA. | C16: UN | D16: =J16 -> 20 | H16: =H15 -> 1691 | J16: 20 | K16: =H15 -> 1691 | L16: =ROUND(K16*J16,2) -> 33820 | P16: LICITARE PRODUTOS, MATERIAIS E SERVICOS LTDA | Q16: 1249.99 | R16: OK | S16: Aceita | T16: Habilitado | W16: OK | AB16: OK | AG16: OK
A17: 13 | B17: RESERVATÓRIO DE POLIETILENO FECHAMENTO RÁPIDO E SEGURO, TAMPA ROSCÁVEL, OLHAIS PARA IÇAMENTO E ANCORAMENTO NA BORDA, DESTINADO A ARMAZENAGEM DE ÁGUA POTÁVEL, ATÓXICO, COM CAPACIDADE DE ARMAZENAMENTO DE 10 M3, COM ORIFICIOS PARA ENTRADA DE 1 ½ POLEGADA E SAIDA DE 1 ½ POLEGADA DE ÁGUA. | C17: UN | D17: =M17-J18 -> 180 | F17: =D17-E17 -> 180 | G17: FORTLEV INDUSTRIA E COMERCIO DE PLASTICOS LTDA. CNPJ: 10.921.911/0005-39 | H17: 2938 | I17: =ROUND(H17*D17,2) -> 528840 | M17: =Reservatórios!D7 -> 200 | N17: =K18 -> 2938 | O17: =L18+I17 -> 587600 | P17: USINORTE POLIETILENO LTDA | Q17: 2000 | R17: OK | S17: Aceita | T17: Habilitado | W17: OK | AB17: OK | AG17: OK
A18: 14 | B18: (Cota de até 25% - Exclusivo para ME e EPP): RESERVATÓRIO DE POLIETILENO FECHAMENTO RÁPIDO E SEGURO, TAMPA ROSCÁVEL, OLHAIS PARA IÇAMENTO E ANCORAMENTO NA BORDA, DESTINADO A ARMAZENAGEM DE ÁGUA POTÁVEL, ATÓXICO, COM CAPACIDADE DE ARMAZENAMENTO DE 10 M3, COM ORIFICIOS PARA ENTRADA DE 1 ½ POLEGADA E SAIDA DE 1 ½ POLEGADA DE ÁGUA. | C18: UN | D18: =J18 -> 20 | H18: =H17 -> 2938 | J18: 20 | K18: =H17 -> 2938 | L18: =ROUND(K18*J18,2) -> 58760 | P18: USINORTE POLIETILENO LTDA | Q18: 2000 | R18: OK | S18: Aceita | T18: Habilitado | W18: OK | AB18: OK | AG18: OK
A19: 15 | B19: RESERVATÓRIO DE POLIETILENO FECHAMENTO RÁPIDO E SEGURO, TAMPA ROSCÁVEL, OLHAIS PARA IÇAMENTO E ANCORAMENTO NA BORDA, DESTINADO A ARMAZENAGEM DE ÁGUA POTÁVEL, ATÓXICO, COM CAPACIDADE DE ARMAZENAMENTO DE 15 M3, COM ORIFICIOS PARA ENTRADA DE 1 ½ POLEGADA E SAIDA DE 1 ½ POLEGADA DE ÁGUA. | C19: UN | D19: =M19-J20 -> 35 | F19: =D19-E19 -> 35 | G19: DALKA DO BRASIL LTDA CNPJ: 04.120.719/0001-17 | H19: 4982.67 | I19: 174393.45 | M19: =Reservatórios!D10 -> 40 | N19: =K20 -> 4982.67 | O19: =L20+I19 -> 199306.8 | P19: BAKOF PLASTICOS LTDA | Q19: 3022.75 | R19: OK | S19: Aceita | T19: Habilitada | W19: OK | AB19: OK | AG19: OK
A20: 16 | B20: (Cota de até 25% - Exclusivo para ME e EPP): RESERVATÓRIO DE POLIETILENO FECHAMENTO RÁPIDO E SEGURO, TAMPA ROSCÁVEL, OLHAIS PARA IÇAMENTO E ANCORAMENTO NA BORDA, DESTINADO A ARMAZENAGEM DE ÁGUA POTÁVEL, ATÓXICO, COM CAPACIDADE DE ARMAZENAMENTO DE 15 M3, COM ORIFICIOS PARA ENTRADA DE 1 ½ POLEGADA E SAIDA DE 1 ½ POLEGADA DE ÁGUA. | C20: UN | D20: =J20 -> 5 | H20: =H19 -> 4982.67 | J20: 5 | K20: =H19 -> 4982.67 | L20: =ROUND(K20*J20,2) -> 24913.35 | P20: SERTAO FIBRAS INDUSTRIA LTDA | R20: Recusada | U20: LICITARE PRODUTOS, MATERIAIS E SERVICOS LTDA | V20: 3814.46 | W20: OK | X20: Aceita | Y20: Habilitado | AB20: OK | AG20: OK
A21: 17 | B21: TUBO DE PVC, PN 60 DE-25MM, SOLDÁVEL, PONTA E BOLSA, COMPRIMENTO 6M - NBR 14654 | C21: UN | D21: =M21-J22 -> 27000 | F21: =D21-E21 -> 27000 | G21: POLYVIN PLASTICOS E DERIVADOS LTDA. CNPJ: 41.664.871/0001-97 | H21: 8.63 | I21: =ROUND(H21*D21,2) -> 233010 | M21: ='Tubos e conexões'!B30 -> 30000 | N21: =K22 -> 8.63 | O21: =L22+I21 -> 258900 | P21: POLYVIN PLASTICOS E DERIVADOS LTDA | Q21: 6.5 | R21: OK | S21: Aceita | T21: Habilitada | W21: OK | AB21: OK | AG21: OK
A22: 18 | B22: (Cota de até 25% - Exclusivo para ME e EPP): TUBO DE PVC, PN 60 DE-25MM, SOLDÁVEL, PONTA E BOLSA, COMPRIMENTO 6M - NBR 14654 | C22: UN | D22: =J22 -> 3000 | H22: =H21 -> 8.63 | J22: 3000 | K22: =H21 -> 8.63 | L22: =ROUND(K22*J22,2) -> 25890 | P22: GUSTAVO VINICIUS DE SOUZA REPRESENTACOES COMERCIAIS | Q22: 7.39 | R22: OK | S22: Aceita | T22: Habilitada | W22: OK | AB22: OK | AG22: OK
A23: 19 | B23: TUBO DE PVC, PN 60 DN-32MM, SOLDÁVEL, PONTA E BOLSA, COMPRIMENTO 6M - NBR 14654 | C23: UN | D23: =M23-J24 -> 27000 | F23: 27000 | G23: POLYVIN PLASTICOS E DERIVADOS LTDA. CNPJ: 41.664.871/0001-97 | H23: 14.71 | I23: 397170 | M23: ='Tubos e conexões'!B31 -> 30000 | N23: =K24 -> 14.71 | O23: =L24+I23 -> 441300 | P23: POLYVIN PLASTICOS E DERIVADOS LTDA | Q23: 10.29 | R23: OK | S23: Aceita | T23: Habilitada | W23: OK | AB23: OK | AG23: OK
A24: 20 | B24: (Cota de até 25% - Exclusivo para ME e EPP): TUBO DE PVC, PN 60 DN-32MM, SOLDÁVEL, PONTA E BOLSA, COMPRIMENTO 6M - NBR 14654 | C24: UN | D24: =J24 -> 3000 | H24: =H23 -> 14.71 | J24: 3000 | K24: =H23 -> 14.71 | L24: =ROUND(K24*J24,2) -> 44130 | P24: BAL COMERCIO E SERVICOS LTDA | Q24: 11 | R24: OK | S24: Aceita | T24: Habilitada | W24: OK | AB24: OK | AG24: OK
A25: 21 | B25: TUBO DE PVC, PN 80 DN-50MM, SOLDÁVEL, PONTA E BOLSA, COMPRIMENTO 6M - NBR 14312 | C25: UN | D25: =180000-J26 -> 177500 | F25: 177500 | G25: POLYVIN PLASTICOS E DERIVADOS LTDA. CNPJ: 41.664.871/0001-97 | H25: 30 | I25: 5325000 | M25: ='Tubos e conexões'!B32 -> 180000 | N25: =K26 -> 30 | O25: =L26+I25 -> 5400000 | P25: UNOCANN TUBOS E CONEXOES LTDA | Q25: 20.1 | R25: OK | S25: Aceita | T25: Habilitada | W25: OK | AB25: OK | AG25: OK
A26: 22 | B26: (Cota de até 25% - Exclusivo para ME e EPP): TUBO DE PVC, PN 80 DN-50MM, SOLDÁVEL, PONTA E BOLSA, COMPRIMENTO 6M - NBR 14312 | C26: UN | D26: =J26 -> 2500 | H26: =H25 -> 30 | J26: 2500 | K26: =H25 -> 30 | L26: =ROUND(K26*J26,2) -> 75000 | P26: BAL COMERCIO E SERVICOS LTDA | Q26: 21.5 | R26: OK | S26: Aceita | T26: Habilitada | W26: OK | AB26: OK | AG26: OK
A27: 23 | B27: TUBO GALVANIZADO COM ROSCA BSP E LUVA, DN 1 ¹/² ", PN 15 Kgf / cm², CLASSE M - NBR 5580 | C27: UN | D27: =M27-J28 -> 900 | F27: - | G27: CANCELADO | H27: CANCELADO | M27: ='Tubos e conexões'!B33 -> 1000 | N27: =K28 -> CANCELADO | O27: =L28+I27 ->  | P27: CAMPEZZA IRRIGACAO E EQUIPAMENTOS EIRELI | Q27: 215 | R27: OK | S27: Recusada | U27: VILAS BOAS & RIOS LTDA | V27: 250 | W27: OK | X27: Recusada | Z27: PORTINARI DISTRIBUICAO E IMPORTACAO EIRELI | AA27: 251.66 | AB27: OK | AC27: Recusada | AE27: MERCEARIA INDIANOPOLIS LTDA | AF27: 500 | AG27: =IF($AF27>$H27,"NEGOCIAR","OK") -> OK
A28: 24 | B28: (Cota de até 25% - Exclusivo para ME e EPP): TUBO GALVANIZADO COM ROSCA BSP E LUVA, DN 1 ¹/² ", PN 15 Kgf / cm², CLASSE M - NBR 5580 | C28: UN | D28: =J28 -> 100 | H28: CANCELADO | J28: 100 | K28: =H27 -> CANCELADO | L28: =ROUND(K28*J28,2) ->  | P28: CAMPEZZA IRRIGACAO E EQUIPAMENTOS EIRELI | Q28: 215 | R28: OK | S28: Recusada | U28: VILAS BOAS & RIOS LTDA | V28: 250 | W28: OK | X28: Recusada | Z28: PORTINARI DISTRIBUICAO E IMPORTACAO EIRELI | AA28: 251.66 | AB28: OK | AC28: Recusada | AE28: MERCEARIA INDIANOPOLIS LTDA | AF28: 500 | AG28: =IF($AF28>$H28,"NEGOCIAR","OK") -> OK | AH28: Recusada
A29: 25 | B29: TUBO DE PVC PBA, CLASSE 15, JUNTA ELASTICA, REDE AGUA, COMPRIMENTO 6M, DN-75MM - NBR 5647 | C29: UN | D29: =M29-J30 -> 1800 | F29: =D29-E29 -> 1800 | G29: POLYVIN PLASTICOS E DERIVADOS LTDA. CNPJ: 41.664.871/0001-97 | H29: 126.12 | I29: 227016 | M29: ='Tubos e conexões'!B34 -> 2000 | N29: =K30 -> 126.12 | O29: =L30+I29 -> 252240 | P29: POLYVIN PLASTICOS E DERIVADOS LTDA | Q29: 92 | R29: OK | S29: Aceita | T29: Habilitada | W29: OK | AB29: OK | AG29: OK
A30: 26 | B30: (Cota de até 25% - Exclusivo para ME e EPP): TUBO DE PVC PBA, CLASSE 15, JUNTA ELASTICA, REDE AGUA, COMPRIMENTO 6M, DN-75MM - NBR 5647 | C30: UN | D30: =J30 -> 200 | H30: =H29 -> 126.12 | J30: 200 | K30: =H29 -> 126.12 | L30: =ROUND(K30*J30,2) -> 25224 | P30: BAL COMERCIO E SERVICOS LTDA | Q30: 99 | R30: OK | S30: Aceita | T30: Habilitada | W30: OK | AB30: OK | AG30: OK
A31: 27 | B31: TUBO DE PVC PBA, CLASSE 15, JUNTA ELASTICA, REDE AGUA, COMPRIMENTO 6M, DN-100MM - NBR 5647 | C31: UN | D31: =M31-J32 -> 1800 | F31: =D31-E31 -> 1800 | G31: MERCEARIA INDIANAPOLIS LTDA CNPJ: 17.263.096/0001-83 | H31: 209.04 | I31: 376272 | M31: ='Tubos e conexões'!B35 -> 2000 | N31: =K32 -> 209.04 | O31: =L32+I31 -> 418080 | P31: POLYVIN PLASTICOS E DERIVADOS LTDA | Q31: 149 | R31: OK | S31: Aceita | T31: Habilitada | W31: OK | AB31: OK | AG31: OK
A32: 28 | B32: (Cota de até 25% - Exclusivo para ME e EPP): TUBO DE PVC PBA, CLASSE 15, JUNTA ELASTICA, REDE AGUA, COMPRIMENTO 6M, DN-100MM - NBR 5647 | C32: UN | D32: =J32 -> 200 | H32: =H31 -> 209.04 | J32: 200 | K32: =H31 -> 209.04 | L32: =ROUND(K32*J32,2) -> 41808 | P32: BAL COMERCIO E SERVICOS LTDA | Q32: 165 | R32: OK | S32: Aceita | T32: Habilitada | W32: OK | AB32: OK | AG32: OK
A33: 29 | B33: CABO TRIPOLAR DE 3x10mm, SISTEMA FLEXÍVEL, 1.000v | C33: M | D33: 2000 | F33: =D33-E33 -> 2000 | G33: LUCIANO VILAS BOAS RIOS - ME CNPJ: 05.155.897/0001-46 | H33: CANCELADO | I33: =ROUND(H33*D33,2) ->  | M33: ='Material elétrico'!E13 -> 2000 | N33: =H33 -> CANCELADO | O33: =L33+I33 ->  | P33: RICARDO ANTONIO DA ROCHA HECK | Q33: 15 | R33: OK | S33: Recusada | U33: WZ UNIAO AUTOMACAO E ELETRICA EIRELI | V33: 17.27 | W33: OK | X33: Recusada | Z33: CAMPEZZA IRRIGACAO E EQUIPAMENTOS EIRELI | AA33: 17.3 | AB33: OK | AC33: Recusada | AE33: META COMERCIO DE FERRAGENS E FERRAMENTAS EIRELI | AF33: 100 | AG33: OK | AH33: Recusada
A34: 30 | B34: FIO ENCAPADO 10mm | C34: M | D34: 2000 | F34: =D34-E34 -> 2000 | G34: LUCIANO VILAS BOAS RIOS - ME CNPJ: 05.155.897/0001-46 | H34: CANCELADO | M34: ='Material elétrico'!E14 -> 2000 | N34: =H34 -> CANCELADO | P34: RICARDO ANTONIO DA ROCHA HECK | Q34: 3.98 | R34: OK | S34: Recusada | U34: CAMPEZZA IRRIGACAO E EQUIPAMENTOS EIRELI | V34: 3.99 | W34: OK | X34: Recusada | AB34: OK | AG34: OK
A35: =A34+1 -> 31 | B35: HIDRÔMETRO UNIJATO 3/4" COM VAZÃO NOMINAL = 1,5 M³ CONFORME NBR 8009, 8193 A 8195 DA ABNT, INCLUSO VIROLAS | C35: UN | D35: =M35-J36 -> 1800 | F35: =D35-E35 -> 1800 | G35: HIDROSSOLO SERVICOS AMBIENTAIS E POCOS ARTESIANOS LTDA CNPJ: 07.781.094/0001-22 | H35: 110.73 | I35: =ROUND(H35*D35,2) -> 199314 | M35: =Hidrômetro!D4 -> 2000 | N35: =K36 -> 110.73 | O35: =L36+I35 -> 221460 | P35: SAGA MEDICAO LTDA | Q35: 75 | R35: OK | S35: Aceita | T35: Habilitada | W35: OK | AB35: OK | AG35: OK
A36: 32 | B36: (Cota de até 25% - Exclusivo para ME e EPP): HIDRÔMETRO UNIJATO 3/4" COM VAZÃO NOMINAL = 1,5 M³ CONFORME NBR 8009, 8193 A 8195 DA ABNT, INCLUSO VIROLAS | C36: UN | D36: 200 | H36: 110.73 | J36: 200 | K36: =H35 -> 110.73 | L36: =ROUND(K36*J36,2) -> 22146 | P36: HG COMERCIO DE MATERIAIS HIDRAULICOS EIRELI | Q36: 75 | R36: OK | S36: Aceita | T36: Habilitada | W36: OK | AB36: OK | AG36: OK
A37: 33 | B37: TUBO CONCRETO ARMADO, CLASSE PA-2, PB, DN 1000 MM, PARA AGUAS PLUVIAIS (NBR8890) | C37: UN | D37: =M37-J38 -> 450 | I37: 0 | M37: ='Tubo em concreto'!D12 -> 500 | N37: =K38 -> 0 | O37: =L38+I37 -> 0 | P37: Deserto | R37: OK
A38: 34 | B38: (Cota de até 25% - Exclusivo para ME e EPP): TUBO CONCRETO ARMADO, CLASSE PA-2, PB, DN 1000 MM, PARA AGUAS PLUVIAIS (NBR8890) | C38: UN | D38: =J38 -> 50 | H38: =H37 -> 0 | J38: 50 | K38: =H37 -> 0 | L38: =ROUND(K38*J38,2) -> 0 | P38: Deserto | R38: OK
A39: 35 | B39: CLORADOR DE PASSAGEM POR PASTILHA PARA POÇO | C39: UN | D39: 100 | H39: 418 | I39: 41800 | L39: =ROUND(K39*J39,2) -> 0 | M39: =Clorador!D4 -> 100 | N39: =H39 -> 418 | O39: =L39+I39 -> 41800 | P39: RPF COMERCIAL EIRELI | Q39: 418 | R39: OK | S39: Aceita | T39: Habilitada | W39: =IF($V39>$H39,"NEGOCIAR","OK") -> OK | AB39: =IF($AA39>$H39,"NEGOCIAR","OK") -> OK

Sheet Quadro Final
A1: QUADRO DEMONSTRATIVO FINAL - EDITAL Nº 040-2018 (PREGÃO ELETRÔNICO)
A2: Item | B2: Descrição | C2: Valor estimado (unit.) | D2: Qtde. | E2: Vencedora | F2: CNPJ | G2: Valor unit. | H2: Total | I2: Economia (%)
A3: 1 | B3: ='Média de preços'!$B5 -> CONJUNTO MOTOBOMBA SUBMERSA E CHAVE DE PROTEÇÃO E PARTIDA: MOTOBOMBA SUBMERSA ELÉTRICA, PARA ATENDER UMA VAZÃO MÍNIMA DE 4M3/H E ALTURA MANOMÉTRICA (HMAN) DE 92 MCA, POTÊNCIA MÁXIMA DE 03 (TRÊS) C.V. , MONOFÁSICA, 220 VOLTS E 60 HZ. | C3: ='Média de preços'!$H5 -> 2663.33 | D3: ='Média de preços'!D5 -> 180 | E3: ='Média de preços'!Z5 -> BOMBAS RIO PRETO LTDA | F3: 59.792.010/0001-50 | G3: ='Média de preços'!AA5 -> 1429.99 | H3: =$D3*$G3 -> 257398.2 | I3: =($C3-$G3)/$C3 -> 0.4630819313
A4: 2 | B4: ='Média de preços'!$B6 -> (Cota de até 25% - Exclusivo para ME e EPP): CONJUNTO MOTOBOMBA SUBMERSA E CHAVE DE PROTEÇÃO E PARTIDA: MOTOBOMBA SUBMERSA ELÉTRICA, PARA ATENDER UMA VAZÃO MÍNIMA DE 4M3/H E ALTURA MANOMÉTRICA (HMAN) DE 92 MCA, POTÊNCIA MÁXIMA DE 03 (TRÊS) C.V. , MONOFÁSICA, 220 VOLTS E 60 HZ. | C4: ='Média de preços'!$H6 -> 2663.33 | D4: ='Média de preços'!D6 -> 20 | G4: =G3 -> 1429.99 | H4: =$D4*$G4 -> 28599.8 | I4: =($C4-$G4)/$C4 -> 0.4630819313
A5: 3 | B5: ='Média de preços'!$B7 -> CONJUNTO MOTOBOMBA SUBMERSA E CHAVE DE PROTEÇÃO E PARTIDA: MOTOBOMBA SUBMERSA ELÉTRICA, PARA ATENDER UMA VAZÃO MÍNIMA DE 8M3/H E ALTURA MANOMÉTRICA (HMAN) DE 92 MCA, POTÊNCIA MÁXIMA DE 05 (CINCO) C.V. , MONOFÁSICA, 220 VOLTS E 60 HZ. | C5: ='Média de preços'!$H7 -> 5060.33 | D5: ='Média de preços'!D7 -> 90 | G5: ='Média de preços'!Q7 -> 2900 | H5: 261000 | I5: 0.4269148455
A6: 4 | B6: ='Média de preços'!$B8 -> (Cota de até 25% - Exclusivo para ME e EPP): CONJUNTO MOTOBOMBA SUBMERSA E CHAVE DE PROTEÇÃO E PARTIDA: MOTOBOMBA SUBMERSA ELÉTRICA, PARA ATENDER UMA VAZÃO MÍNIMA DE 8M3/H E ALTURA MANOMÉTRICA (HMAN) DE 92 MCA, POTÊNCIA MÁXIMA DE 05 (CINCO) C.V. , MONOFÁSICA, 220 VOLTS E 60 HZ. | C6: ='Média de preços'!$H8 -> 5060.33 | D6: ='Média de preços'!D8 -> 10 | G6: =G5 -> 2900 | H6: 29000 | I6: 0.4269148455
A7: 5 | B7: ='Média de preços'!$B9 -> MOTOBOMBA CENTRIFUGA ACOPLADA AO MOTOR A GASOLINA 2,8 CV 4 TEMPOS COM VAZÃO 16000 L/H E HM = 45 MCA INCLUINDO MANGOTE COM 6M DE COMPRIMENTO, VÁLVULA DE PÉ COM CRIVO, DUAS ABRAÇADEIRAS E DUAS CURVAS DE AÇO | C7: ='Média de preços'!$H9 -> 1225 | D7: ='Média de preços'!D9 -> 10 | E7: ='Média de preços'!P9 -> CAMPEZZA IRRIGACAO E EQUIPAMENTOS EIRELI | F7: 28.017.188/0001-08 | G7: ='Média de preços'!Q9 -> 1103.7 | H7: 11037 | I7: 0.09902040816
A8: 6 | B8: ='Média de preços'!$B10 -> MOTOBOMBA CENTRIFUGA ACOPLADA AO MOTOR A GASOLINA 5,5 CV 4 TEMPOS COM VAZÃO 20000 L/H E HM = 38 MCA INCLUINDO MANGOTE COM 6M DE COMPRIMENTO, VÁLVULA DE PÉ COM CRIVO, DUAS ABRAÇADEIRAS E DUAS CURVAS DE AÇO | C8: ='Média de preços'!$H10 -> 1776 | D8: ='Média de preços'!D10 -> 10 | E8: ='Média de preços'!U10 -> BRASIDAS EIRELI | F8: 20.483.193/0001-96 | G8: ='Média de preços'!V10 -> 1769.95 | H8: 17699.5 | I8: 0.003406531532
A9: 7 | B9: ='Média de preços'!$B11 -> MOTOBOMBA CENTRIFUGA ACOPLADA AO MOTOR A GASOLINA 6,5 CV 4 TEMPOS COM VAZÃO 36000 L/H E HM = 56 MCA INCLUINDO MANGOTE COM 6M DE COMPRIMENTO, VÁLVULA DE PÉ COM CRIVO, DUAS ABRAÇADEIRAS E DUAS CURVAS DE AÇO | C9: ='Média de preços'!$H11 -> 1726.67 | D9: ='Média de preços'!D11 -> 10 | G9: ='Média de preços'!AA11 -> 1448.99 | H9: 14489.9 | I9: 0.1608182224
A10: 8 | B10: ='Média de preços'!$B12 -> MOTOBOMBA CENTRÍFUGA DE EIXO HORIZONTAL, POTÊNCIA MÁXIMA 3CV, ROTOR EM BRONZE COM VAZÃO 5.000 L/H E HM = 100 MCA MONOFÁSICO INCLUINDO MANGOTE COM 6M DE COMPRIMENTO, VÁLVULA DE PÉ COM CRIVO, DUAS ABRAÇADEIRAS E DUAS CURVAS DE AÇO | C10: ='Média de preços'!$H12 -> 3569 | D10: ='Média de preços'!D12 -> 10 | G10: ='Média de preços'!AA12 -> 2854.99 | H10: 28549.9 | I10: 0.20005884
A11: 9 | B11: ='Média de preços'!$B13 -> MOTOBOMBA CENTRÍFUGA DE EIXO HORIZONTAL, POTÊNCIA MÁXIMA 5CV, ROTOR EM BRONZE COM VAZÃO 10.000 L/H E HM = 80 MCA MONOFÁSICO INCLUINDO MANGOTE COM 6M DE COMPRIMENTO, VÁLVULA DE PÉ COM CRIVO, DUAS ABRAÇADEIRAS E DUAS CURVAS DE AÇO | C11: ='Média de preços'!$H13 -> 6369.33 | D11: ='Média de preços'!D13 -> 10 | G11: ='Média de preços'!AA13 -> 4733.99 | H11: 47339.9 | I11: 0.2567522801
A12: 10 | B12: ='Média de preços'!$B14 -> MOTOBOMBA CENTRÍFUGA DE EIXO HORIZONTAL, POTÊNCIA MÁXIMA 7,5 CV, ROTOR EM BRONZE COM VAZÃO 10.000 L/H E HM = 100 MCA MONOFÁSICO INCLUINDO MANGOTE COM 6M DE COMPRIMENTO, VÁLVULA DE PÉ COM CRIVO, DUAS ABRAÇADEIRAS E DUAS CURVAS DE AÇO | C12: ='Média de preços'!$H14 -> 8465.67 | D12: ='Média de preços'!D14 -> 10 | E12: ='Média de preços'!$P14 -> STARMAC INDUSTRIA E COMERCIO LTDA | F12: 10.796.174/0001-66 | G12: ='Média de preços'!$Q14 -> 6418 | H12: 64180 | I12: 0.2418792606
A13: 11 | B13: ='Média de preços'!$B15 -> RESERVATÓRIO DE POLIETILENO FECHAMENTO RÁPIDO E SEGURO, TAMPA ROSCÁVEL, OLHAIS PARA IÇAMENTO E ANCORAMENTO NA BORDA, DESTINADO A ARMAZENAGEM DE ÁGUA POTÁVEL, ATÓXICO, COM CAPACIDADE DE ARMAZENAMENTO DE 5 M3, COM ORIFICIOS PARA ENTRADA DE 1 ½ POLEGADA E SAIDA DE 1 ½ POLEGADA DE ÁGUA. | C13: ='Média de preços'!$H15 -> 1691 | D13: ='Média de preços'!D15 -> 160 | E13: ='Média de preços'!$P15 -> USINORTE POLIETILENO LTDA | F13: 09.607.249/0001-34 | G13: ='Média de preços'!$Q15 -> 1008 | H13: 161280 | I13: 0.403903016
A14: 12 | B14: ='Média de preços'!$B16 -> (Cota de até 25% - Exclusivo para ME e EPP): RESERVATÓRIO DE POLIETILENO FECHAMENTO RÁPIDO E SEGURO, TAMPA ROSCÁVEL, OLHAIS PARA IÇAMENTO E ANCORAMENTO NA BORDA, DESTINADO A ARMAZENAGEM DE ÁGUA POTÁVEL, ATÓXICO, COM CAPACIDADE DE ARMAZENAMENTO DE 5 M3, COM ORIFICIOS PARA ENTRADA DE 1 ½ POLEGADA E SAIDA DE 1 ½ POLEGADA DE ÁGUA. | C14: ='Média de preços'!$H16 -> 1691 | D14: ='Média de preços'!D16 -> 20 | E14: ='Média de preços'!$P16 -> LICITARE PRODUTOS, MATERIAIS E SERVICOS LTDA | F14: 18.641.075/0001-17 | G14: ='Média de preços'!$Q16 -> 1249.99 | H14: 24999.8 | I14: 0.2607983442
A15: 13 | B15: ='Média de preços'!$B17 -> RESERVATÓRIO DE POLIETILENO FECHAMENTO RÁPIDO E SEGURO, TAMPA ROSCÁVEL, OLHAIS PARA IÇAMENTO E ANCORAMENTO NA BORDA, DESTINADO A ARMAZENAGEM DE ÁGUA POTÁVEL, ATÓXICO, COM CAPACIDADE DE ARMAZENAMENTO DE 10 M3, COM ORIFICIOS PARA ENTRADA DE 1 ½ POLEGADA E SAIDA DE 1 ½ POLEGADA DE ÁGUA. | C15: ='Média de preços'!$H17 -> 2938 | D15: ='Média de preços'!D17 -> 180 | E15: ='Média de preços'!$P17 -> USINORTE POLIETILENO LTDA | F15: 09.607.249/0001-34 | G15: ='Média de preços'!$Q17 -> 2000 | H15: 360000 | I15: 0.319264806
A16: 14 | B16: ='Média de preços'!$B18 -> (Cota de até 25% - Exclusivo para ME e EPP): RESERVATÓRIO DE POLIETILENO FECHAMENTO RÁPIDO E SEGURO, TAMPA ROSCÁVEL, OLHAIS PARA IÇAMENTO E ANCORAMENTO NA BORDA, DESTINADO A ARMAZENAGEM DE ÁGUA POTÁVEL, ATÓXICO, COM CAPACIDADE DE ARMAZENAMENTO DE 10 M3, COM ORIFICIOS PARA ENTRADA DE 1 ½ POLEGADA E SAIDA DE 1 ½ POLEGADA DE ÁGUA. | C16: ='Média de preços'!$H18 -> 2938 | D16: ='Média de preços'!D18 -> 20 | G16: ='Média de preços'!$Q18 -> 2000 | H16: 40000 | I16: 0.319264806
A17: 15 | B17: ='Média de preços'!$B19 -> RESERVATÓRIO DE POLIETILENO FECHAMENTO RÁPIDO E SEGURO, TAMPA ROSCÁVEL, OLHAIS PARA IÇAMENTO E ANCORAMENTO NA BORDA, DESTINADO A ARMAZENAGEM DE ÁGUA POTÁVEL, ATÓXICO, COM CAPACIDADE DE ARMAZENAMENTO DE 15 M3, COM ORIFICIOS PARA ENTRADA DE 1 ½ POLEGADA E SAIDA DE 1 ½ POLEGADA DE ÁGUA. | C17: ='Média de preços'!$H19 -> 4982.67 | D17: ='Média de preços'!D19 -> 35 | E17: ='Média de preços'!$P19 -> BAKOF PLASTICOS LTDA | F17: 91.967.067/0001-55 | G17: ='Média de preços'!$Q19 -> 3022.75 | H17: 105796.25 | I17: 0.3933473419
A18: 16 | B18: ='Média de preços'!$B20 -> (Cota de até 25% - Exclusivo para ME e EPP): RESERVATÓRIO DE POLIETILENO FECHAMENTO RÁPIDO E SEGURO, TAMPA ROSCÁVEL, OLHAIS PARA IÇAMENTO E ANCORAMENTO NA BORDA, DESTINADO A ARMAZENAGEM DE ÁGUA POTÁVEL, ATÓXICO, COM CAPACIDADE DE ARMAZENAMENTO DE 15 M3, COM ORIFICIOS PARA ENTRADA DE 1 ½ POLEGADA E SAIDA DE 1 ½ POLEGADA DE ÁGUA. | C18: ='Média de preços'!$H20 -> 4982.67 | D18: ='Média de preços'!D20 -> 5 | E18: ='Média de preços'!U20 -> LICITARE PRODUTOS, MATERIAIS E SERVICOS LTDA | F18: 18.641.075/0001-17 | G18: ='Média de preços'!V20 -> 3814.46 | H18: 19072.3 | I18: 0.2344546197
A19: 17 | B19: ='Média de preços'!$B21 -> TUBO DE PVC, PN 60 DE-25MM, SOLDÁVEL, PONTA E BOLSA, COMPRIMENTO 6M - NBR 14654 | C19: ='Média de preços'!$H21 -> 8.63 | D19: ='Média de preços'!D21 -> 27000 | E19: ='Média de preços'!$P21 -> POLYVIN PLASTICOS E DERIVADOS LTDA | F19: 41.664.871/0001-97 | G19: ='Média de preços'!$Q21 -> 6.5 | H19: 175500 | I19: 0.2468134415
A20: 18 | B20: ='Média de preços'!$B22 -> (Cota de até 25% - Exclusivo para ME e EPP): TUBO DE PVC, PN 60 DE-25MM, SOLDÁVEL, PONTA E BOLSA, COMPRIMENTO 6M - NBR 14654 | C20: ='Média de preços'!$H22 -> 8.63 | D20: ='Média de preços'!D22 -> 3000 | E20: ='Média de preços'!$P22 -> GUSTAVO VINICIUS DE SOUZA REPRESENTACOES COMERCIAIS | F20: 28.526.595/0001-32 | G20: ='Média de preços'!$Q22 -> 7.39 | H20: 22170 | I20: 0.1436848204
A21: 19 | B21: ='Média de preços'!$B23 -> TUBO DE PVC, PN 60 DN-32MM, SOLDÁVEL, PONTA E BOLSA, COMPRIMENTO 6M - NBR 14654 | C21: ='Média de preços'!$H23 -> 14.71 | D21: ='Média de preços'!D23 -> 27000 | E21: ='Média de preços'!$P23 -> POLYVIN PLASTICOS E DERIVADOS LTDA | F21: 41.664.871/0001-97 | G21: ='Média de preços'!$Q23 -> 10.29 | H21: 277830 | I21: 0.3004758668
A22: 20 | B22: ='Média de preços'!$B24 -> (Cota de até 25% - Exclusivo para ME e EPP): TUBO DE PVC, PN 60 DN-32MM, SOLDÁVEL, PONTA E BOLSA, COMPRIMENTO 6M - NBR 14654 | C22: ='Média de preços'!$H24 -> 14.71 | D22: ='Média de preços'!D24 -> 3000 | E22: ='Média de preços'!$P24 -> BAL COMERCIO E SERVICOS LTDA | F22: 11.317.774/0001-67 | G22: ='Média de preços'!$Q24 -> 11 | H22: 33000 | I22: 0.2522093814
A23: 21 | B23: ='Média de preços'!$B25 -> TUBO DE PVC, PN 80 DN-50MM, SOLDÁVEL, PONTA E BOLSA, COMPRIMENTO 6M - NBR 14312 | C23: ='Média de preços'!$H25 -> 30 | D23: ='Média de preços'!D25 -> 177500 | E23: ='Média de preços'!$P25 -> UNOCANN TUBOS E CONEXOES LTDA | F23: 86.632.239/0001-08 | G23: ='Média de preços'!$Q25 -> 20.1 | H23: 3567750 | I23: 0.33
A24: 22 | B24: ='Média de preços'!$B26 -> (Cota de até 25% - Exclusivo para ME e EPP): TUBO DE PVC, PN 80 DN-50MM, SOLDÁVEL, PONTA E BOLSA, COMPRIMENTO 6M - NBR 14312 | C24: ='Média de preços'!$H26 -> 30 | D24: ='Média de preços'!D26 -> 2500 | E24: ='Média de preços'!$P26 -> BAL COMERCIO E SERVICOS LTDA | F24: 11.317.774/0001-67 | G24: ='Média de preços'!$Q26 -> 21.5 | H24: 53750 | I24: 0.2833333333
A25: 23 | B25: ='Média de preços'!$B27 -> TUBO GALVANIZADO COM ROSCA BSP E LUVA, DN 1 ¹/² ", PN 15 Kgf / cm², CLASSE M - NBR 5580 | C25: ='Média de preços'!$H27 -> CANCELADO
A26: 24 | B26: ='Média de preços'!$B28 -> (Cota de até 25% - Exclusivo para ME e EPP): TUBO GALVANIZADO COM ROSCA BSP E LUVA, DN 1 ¹/² ", PN 15 Kgf / cm², CLASSE M - NBR 5580 | C26: ='Média de preços'!$H28 -> CANCELADO
A27: 25 | B27: ='Média de preços'!$B29 -> TUBO DE PVC PBA, CLASSE 15, JUNTA ELASTICA, REDE AGUA, COMPRIMENTO 6M, DN-75MM - NBR 5647 | C27: ='Média de preços'!$H29 -> 126.12 | D27: ='Média de preços'!D29 -> 1800 | E27: ='Média de preços'!$P29 -> POLYVIN PLASTICOS E DERIVADOS LTDA | F27: 41.664.871/0001-97 | G27: ='Média de preços'!$Q29 -> 92 | H27: =$D27*$G27 -> 165600 | I27: =($C27-$G27)/$C27 -> 0.2705359975
A28: 26 | B28: ='Média de preços'!$B30 -> (Cota de até 25% - Exclusivo para ME e EPP): TUBO DE PVC PBA, CLASSE 15, JUNTA ELASTICA, REDE AGUA, COMPRIMENTO 6M, DN-75MM - NBR 5647 | C28: ='Média de preços'!$H30 -> 126.12 | D28: ='Média de preços'!D30 -> 200 | E28: ='Média de preços'!$P30 -> BAL COMERCIO E SERVICOS LTDA | F28: 11.317.774/0001-67 | G28: ='Média de preços'!$Q30 -> 99 | H28: 19800 | I28: 0.2150333016
A29: 27 | B29: ='Média de preços'!$B31 -> TUBO DE PVC PBA, CLASSE 15, JUNTA ELASTICA, REDE AGUA, COMPRIMENTO 6M, DN-100MM - NBR 5647 | C29: ='Média de preços'!$H31 -> 209.04 | D29: ='Média de preços'!D31 -> 1800 | E29: ='Média de preços'!$P31 -> POLYVIN PLASTICOS E DERIVADOS LTDA | F29: 41.664.871/0001-97 | G29: ='Média de preços'!$Q31 -> 149 | H29: 268200 | I29: 0.2872177574
A30: 28 | B30: ='Média de preços'!$B32 -> (Cota de até 25% - Exclusivo para ME e EPP): TUBO DE PVC PBA, CLASSE 15, JUNTA ELASTICA, REDE AGUA, COMPRIMENTO 6M, DN-100MM - NBR 5647 | C30: ='Média de preços'!$H32 -> 209.04 | D30: ='Média de preços'!D32 -> 200 | E30: ='Média de preços'!$P32 -> BAL COMERCIO E SERVICOS LTDA | F30: 11.317.774/0001-67 | G30: ='Média de preços'!$Q32 -> 165 | H30: 33000 | I30: 0.2106773823
A31: 29 | B31: ='Média de preços'!B33 -> CABO TRIPOLAR DE 3x10mm, SISTEMA FLEXÍVEL, 1.000v | C31: ='Média de preços'!$H33 -> CANCELADO
A32: 30 | B32: ='Média de preços'!$B34 -> FIO ENCAPADO 10mm | C32: ='Média de preços'!$H34 -> CANCELADO
A33: 31 | B33: ='Média de preços'!B35 -> HIDRÔMETRO UNIJATO 3/4" COM VAZÃO NOMINAL = 1,5 M³ CONFORME NBR 8009, 8193 A 8195 DA ABNT, INCLUSO VIROLAS | C33: ='Média de preços'!$H35 -> 110.73 | D33: ='Média de preços'!D35 -> 1800 | E33: ='Média de preços'!P35 -> SAGA MEDICAO LTDA | F33: 08.026.075/0001-53 | G33: ='Média de preços'!$Q35 -> 75 | H33: =$D33*$G33 -> 135000 | I33: =($C33-$G33)/$C33 -> 0.3226767814
A34: 32 | B34: ='Média de preços'!B36 -> (Cota de até 25% - Exclusivo para ME e EPP): HIDRÔMETRO UNIJATO 3/4" COM VAZÃO NOMINAL = 1,5 M³ CONFORME NBR 8009, 8193 A 8195 DA ABNT, INCLUSO VIROLAS | C34: ='Média de preços'!$H36 -> 110.73 | D34: ='Média de preços'!D36 -> 200 | E34: ='Média de preços'!P36 -> HG COMERCIO DE MATERIAIS HIDRAULICOS EIRELI | F34: 04.722.894/0001-84 | G34: ='Média de preços'!$Q36 -> 75 | H34: 15000 | I34: 0.3226767814
A35: 33 | B35: ='Média de preços'!$B36 -> (Cota de até 25% - Exclusivo para ME e EPP): HIDRÔMETRO UNIJATO 3/4" COM VAZÃO NOMINAL = 1,5 M³ CONFORME NBR 8009, 8193 A 8195 DA ABNT, INCLUSO VIROLAS | C35: Deserto
A36: 34 | B36: ='Média de preços'!$B37 -> TUBO CONCRETO ARMADO, CLASSE PA-2, PB, DN 1000 MM, PARA AGUAS PLUVIAIS (NBR8890) | C36: Deserto
A37: 35 | B37: ='Média de preços'!$B38 -> (Cota de até 25% - Exclusivo para ME e EPP): TUBO CONCRETO ARMADO, CLASSE PA-2, PB, DN 1000 MM, PARA AGUAS PLUVIAIS (NBR8890) | C37: ='Média de preços'!$H39 -> 418 | D37: ='Média de preços'!D39 -> 100 | E37: ='Média de preços'!P39 -> RPF COMERCIAL EIRELI | F37: 03.217.016/0001-49 | G37: ='Média de preços'!Q39 -> 418 | H37: =$D37*$G37 -> 41800 | I37: =($C37-$G37)/$C37 -> 0
G38: TOTAL GERAL | H38: =SUM(H3:H24,H27:H30,H33:H34,H37) -> 6278842.55
